[Event "FIDE WCCC Open-08 2024"]
[Site "Montesilvano"]
[Date "2024.11.20"]
[Round "6.18"]
[White "Wang, Yihan(Ah)"]
[Black "Kuncoro, Leo"]
[Result "1/2-1/2"]
[ECO "B22"]
[WhiteElo "1630"]
[BlackElo "1726"]
[Annotator "NA RC"]
[PlyCount "148"]
[EventDate "2024.11.18"]
[EventType "swiss"]
[EventCountry "ITA"]
[SourceTitle "playchess.com"]
[Source "ChessBase"]
[SourceQuality "1"]
[TimeControl "5400+30"]

1. e4 {[%emt 0:00:10]} c5 {[%emt 0:00:06]} 2. c3 {[%emt 0:00:05]} d5 {[%emt 0:00:06]} 3. exd5 {[%emt 0:00:55]} Qxd5 {[%emt 0:00:07]} 4. d4 {[%emt 0:00:57]} Nc6 {[%emt 0:00:10]} 5. Nf3 {[%emt 0:01:40]} Nf6 {[%emt 0:00:32]} 6. Be2 {[%emt 0:02:08]} e6 {[%emt 0:01:32]} 7. O-O {[%emt 0:02:20]} cxd4 {[%emt 0:00:17]} 8. cxd4 {[%emt 0:03:54]} Be7 {[%emt 0:00:09]} 9. Nc3 {[%emt 0:02:56]} Qd6 {[%emt 0:00:06]} 10. Be3 {[%emt 0:01:36]} O-O {[%emt 0:00:10]} 11. h3 {[%emt 0:09:08]} b6 {[%emt 0:01:50]} 12. Qb3 {[%emt 0:12:29]} Qb4 {[%emt 0:05:55]} 13. Rfd1 {[%emt 0:08:19]} Rd8 {[%emt 0:03:48]} 14. Qxb4 {[%emt 0:15:53]} Nxb4 {[%emt 0:00:13]} 15. Ne5 {[%emt 0:03:01]} Bb7 {[%emt 0:03:05]} 16. Rac1 {[%emt 0:04:05]} Rac8 {[%emt 0:07:27]} 17. a3 {[%emt 0:00:41]} Nbd5 {[%emt 0:01:09]} 18. Bf3 {[%emt 0:01:43]} a6 {[%emt 0:26:25]} 19. Na4 {[%emt 0:11:06]} Ba8 {[%emt 0:03:18]} 20. b4 {[%emt 0:04:33]} h6 {[%emt 0:08:16]} 21. g4 {[%emt 0:03:02]} Nxe3 {[%emt 0:02:57]} 22. fxe3 {[%emt 0:00:17]} Bxf3 {[%emt 0:02:04]} 23. Nxf3 {[%emt 0:00:04]} Nd5 {[%emt 0:03:19]} 24. e4 {[%emt 0:02:58]} Rxc1 {[%emt 0:02:30]} 25. Rxc1 {[%emt 0:00:19]} Nf4 {[%emt 0:00:38]} 26. Kh2 {[%emt 0:01:57]} Ne2 {[%emt 0:01:11]} 27. Rc6 {[%emt 0:04:13]} Nxd4 {[%emt 0:02:38]} 28. Nxd4 {[%emt 0:00:22]} Rxd4 {[%emt 0:00:06]} 29. Rxb6 {[%emt 0:00:32]} Rxe4 {[%emt 0:02:23]} 30. Rxa6 {[%emt 0:00:23]} Re2+ {[%emt 0:00:24]} 31. Kg1 {[%emt 0:00:23]} Re1+ {[%emt 0:01:13]} 32. Kf2 {[%emt 0:00:44]} Ra1 {[%emt 0:01:11]} 33. Nc5 {[%emt 0:00:39]} Ra2+ {[%emt 0:00:58]} 34. Kf3 {[%emt 0:00:45]} Rc2 {[%emt 0:00:35]} 35. Nd3 {[%emt 0:01:09]} Rc3 {[%emt 0:00:35]} 36. Ke3 {[%emt 0:01:26]} Bg5+ {[%emt 0:00:20]} 37. Ke2 {[%emt 0:00:44]} Rc2+ {[%emt 0:00:40]} 38. Kf3 {[%emt 0:00:28]} Rc3 {[%emt 0:00:05]} 39. Ke2 {[%emt 0:00:26]} Rc2+ {[%emt 0:00:11]} 40. Ke1 {[%emt 0:00:23]} Rh2 {[%emt 0:01:39]} 41. b5 {[%emt 0:00:41]} Rh1+ {[%emt 0:00:06]} 42. Ke2 {[%emt 0:00:11]} Rh2+ {[%emt 0:00:23]} 43. Kf1 {[%emt 0:00:24]} Rxh3 {[%emt 0:00:28]} 44. Rd6 {[%emt 0:01:09]} Rh1+ {[%emt 0:00:36]} 45. Kg2 {[%emt 0:00:15]} Rb1 {[%emt 0:00:08]} 46. a4 {[%emt 0:00:12]} Be3 {[%emt 0:00:28]} 47. Kf3 {[%emt 0:00:25]} Bg1 {[%emt 0:00:09]} 48. Rd8+ {[%emt 0:01:03]} Kh7 {[%emt 0:00:10]} 49. Rb8 {[%emt 0:00:22]} Bh2 {[%emt 0:02:05]} 50. Rb7 {[%emt 0:00:23]} Ra1 {[%emt 0:00:52]} 51. Ra7 {[%emt 0:00:21]} Rb1 {[%emt 0:00:21]} 52. Rb7 {[%emt 0:01:01]} Ra1 {[%emt 0:00:12]} 53. Ra7 {[%emt 0:00:29]} Rb1 {[%emt 0:00:06]} 54. Kg2 {[%emt 0:00:00]} Bg1 {[%emt 0:00:23]} 55. Rb7 {[%emt 0:00:00]} Bd4 {[%emt 0:01:22]} 56. a5 {[%emt 0:00:34]} Rb3 {[%emt 0:00:20]} 57. Nf4 {[%emt 0:00:59]} Ra3 {[%emt 0:00:45]} 58. a6 {[%emt 0:00:18]} Ra2+ {[%emt 0:02:54]} 59. Kf3 {[%emt 0:00:56]} Ra3+ {[%emt 0:01:44]} 60. Ke2 {[%emt 0:00:35]} f6 {[%emt 0:01:44]} 61. Nd3 {[%emt 0:00:45]} e5 {[%emt 0:00:29]} 62. Nb4 {[%emt 0:00:28]} h5 {[%emt 0:03:07]} 63. gxh5 {[%emt 0:01:36]} f5 {[%emt 0:02:54]} 64. Rf7 {[%emt 0:00:00]} Rb3 {[%emt 0:00:37]} 65. Nc6 {[%emt 0:00:06]} Rxb5 {[%emt 0:00:25]} 66. Rxf5 {[%emt 0:00:33]} Rb2+ {[%emt 0:01:09]} 67. Kd3 {[%emt 0:00:20]} Ra2 {[%emt 0:03:06]} 68. Nxd4 {[%emt 0:00:30]} exd4 {[%emt 0:00:12]} 69. Kxd4 {[%emt 0:00:09]} Rxa6 {[%emt 0:00:05]} 70. Ke5 {[%emt 0:00:23]} Ra5+ {[%emt 0:00:14]} 71. Kf4 {[%emt 0:00:07]} Rxf5+ {[%emt 0:00:06]} 72. Kxf5 {[%emt 0:00:04]} Kh6 {[%emt 0:00:08]} 73. Kg4 {[%emt 0:00:03]} g5 {[%emt 0:01:34]} 74. hxg6 {[%emt 0:00:12]} Kxg6 {[%emt 0:00:39]} 1/2-1/2

[Event "FIDE WCCC Open-08 2024"]
[Site "Montesilvano"]
[Date "2024.11.20"]
[Round "6.19"]
[White "Jevglevski, Lev"]
[Black "Vo, Daniel"]
[Result "1-0"]
[ECO "B46"]
[WhiteElo "1602"]
[BlackElo "1711"]
[Annotator "NA RC"]
[PlyCount "91"]
[EventDate "2024.11.18"]
[EventType "swiss"]
[EventCountry "ITA"]
[SourceTitle "playchess.com"]
[Source "ChessBase"]
[SourceQuality "1"]
[TimeControl "5400+30"]

1. e4 {[%emt 0:00:03]} c5 {[%emt 0:00:19]} 2. Nf3 {[%emt 0:00:06]} e6 {[%emt 0:00:52]} 3. d4 {[%emt 0:00:11]} cxd4 {[%emt 0:01:00]} 4. Nxd4 {[%emt 0:00:08]} Nc6 {[%emt 0:01:29]} 5. Nc3 {[%emt 0:00:39]} a6 {[%emt 0:00:20]} 6. Nxc6 {[%emt 0:02:10]} bxc6 {[%emt 0:00:33]} 7. e5 {[%emt 0:02:38]} Bb4 {[%emt 0:01:39]} 8. Qg4 {[%emt 0:12:14]} Bf8 {[%emt 0:06:47]} 9. Be3 {[%emt 0:11:47]} Ne7 {[%emt 0:08:01]} 10. O-O-O {[%emt 0:14:52]} Nf5 {[%emt 0:08:14]} 11. Bc4 {[%emt 0:11:43]} Rb8 {[%emt 1:06:46]} 12. Qe4 {[%emt 0:05:58]} Qa5 {[%emt 0:00:00]} 13. Bd2 {[%emt 0:04:22]} Qb4 {[%emt 0:00:00]} 14. Nb5 {[%emt 0:02:55]} Qa4 {[%emt 0:00:00]} 15. Nc3 {[%emt 0:03:09]} Qa3 {[%emt 0:00:00]} 16. Bb3 {[%emt 0:00:18]} Qc5 {[%emt 0:00:00]} 17. g4 {[%emt 0:00:57]} Ne7 {[%emt 0:00:00]} 18. Be3 {[%emt 0:04:30]} Qb4 {[%emt 0:00:00]} 19. Rd4 {[%emt 0:00:41]} Qb7 {[%emt 0:00:00]} 20. Rhd1 {[%emt 0:01:28]} Nd5 {[%emt 0:00:00]} 21. Nxd5 {[%emt 0:00:27]} cxd5 {[%emt 0:00:00]} 22. Qf3 {[%emt 0:00:40]} Be7 {[%emt 0:00:00]} 23. Qe2 {[%emt 0:00:42]} Qc6 {[%emt 0:00:00]} 24. f4 {[%emt 0:00:35]} Qb5 {[%emt 0:00:00]} 25. Qf2 {[%emt 0:01:52]} a5 {[%emt 0:00:00]} 26. f5 {[%emt 0:01:49]} Rf8 {[%emt 0:00:00]} 27. g5 {[%emt 0:00:43]} Bc5 {[%emt 0:00:00]} 28. a4 {[%emt 0:01:06]} Qc6 {[%emt 0:00:00]} 29. R4d3 {[%emt 0:00:34]} Bxe3+ {[%emt 0:00:00]} 30. Qxe3 {[%emt 0:01:10]} Rb4 {[%emt 0:00:00]} 31. Rc3 {[%emt 0:00:24]} Qb7 {[%emt 0:00:00]} 32. Qc5 {[%emt 0:00:50]} Qc6 {[%emt 0:00:00]} 33. Qxa5 {[%emt 0:15:19]} Rc4 {[%emt 0:00:00]} 34. Bxc4 {[%emt 0:00:00]} dxc4 {[%emt 0:00:00]} 35. f6 {[%emt 0:00:00]} gxf6 {[%emt 0:00:00]} 36. gxf6 {[%emt 0:00:00]} Rg8 {[%emt 0:01:11]} 37. Qb4 {[%emt 0:00:00]} Kd8 {[%emt 0:00:06]} 38. Rxc4 {[%emt 0:00:00]} Qxc4 {[%emt 0:00:21]} 39. Qxc4 {[%emt 0:00:00]} Bb7 {[%emt 0:00:19]} 40. a5 {[%emt 0:00:00]} Bc6 {[%emt 0:00:12]} 41. Qxc6 {[%emt 0:00:00]} d5 {[%emt 0:00:16]} 42. a6 {[%emt 0:00:00]} Rg4 {[%emt 0:00:14]} 43. a7 {[%emt 0:00:00]} Ra4 {[%emt 0:00:16]} 44. Qxa4 {[%emt 0:00:00]} Kc7 {[%emt 0:00:04]} 45. a8=Q {[%emt 0:00:00]} d4 {[%emt 0:00:09]} 46. Q4c6# {[%emt 0:00:00]} 1-0

[Event "FIDE WCCC Open-08 2024"]
[Site "Montesilvano"]
[Date "2024.11.20"]
[Round "6.20"]
[White "Meiyazhagan, Kaviinayan"]
[Black "Tuguldur, Baatarchuluun"]
[Result "1-0"]
[ECO "C50"]
[WhiteElo "1707"]
[BlackElo "1590"]
[Annotator "NA RC"]
[PlyCount "131"]
[EventDate "2024.11.18"]
[EventType "swiss"]
[EventCountry "ITA"]
[SourceTitle "playchess.com"]
[Source "ChessBase"]
[SourceQuality "1"]
[TimeControl "5400+30"]

1. e4 {[%emt 0:00:09]} e5 {[%emt 0:00:17]} 2. Nf3 {[%emt 0:00:10]} Nc6 {[%emt 0:00:56]} 3. Bc4 {[%emt 0:00:20]} Bc5 {[%emt 0:00:55]} 4. d3 {[%emt 0:00:29]} Nf6 {[%emt 0:00:14]} 5. O-O {[%emt 0:00:28]} d6 {[%emt 0:01:12]} 6. h3 {[%emt 0:00:12]} a6 {[%emt 0:00:26]} 7. a3 {[%emt 0:00:30]} b5 {[%emt 0:00:55]} 8. Ba2 {[%emt 0:00:13]} h6 {[%emt 0:00:29]} 9. Nc3 {[%emt 0:03:31]} O-O {[%emt 0:00:23]} 10. Be3 {[%emt 0:00:31]} Nd4 {[%emt 0:01:44]} 11. Nd5 {[%emt 0:00:24]} c6 {[%emt 0:01:38]} 12. Nxf6+ {[%emt 0:00:58]} Qxf6 {[%emt 0:00:40]} 13. Nxd4 {[%emt 0:01:21]} exd4 {[%emt 0:00:48]} 14. Bd2 {[%emt 0:00:31]} Qg6 {[%emt 0:00:23]} 15. Kh2 {[%emt 0:02:47]} Be6 {[%emt 0:01:14]} 16. f4 {[%emt 0:01:14]} Bxa2 {[%emt 0:00:20]} 17. Rxa2 {[%emt 0:00:23]} f5 {[%emt 0:00:28]} 18. exf5 {[%emt 0:05:18]} Qxf5 {[%emt 0:01:34]} 19. Qf3 {[%emt 0:02:47]} d5 {[%emt 0:01:40]} 20. Raa1 {[%emt 0:05:29]} Bd6 {[%emt 0:00:19]} 21. g3 {[%emt 0:13:01]} Rf6 {[%emt 0:00:24]} 22. Rae1 {[%emt 0:07:01]} Raf8 {[%emt 0:01:02]} 23. Qg2 {[%emt 0:00:19]} h5 {[%emt 0:01:08]} 24. Kh1 {[%emt 0:04:06]} g5 {[%emt 0:02:04]} 25. Kg1 {[%emt 0:01:28]} Kh7 {[%emt 0:08:55]} 26. g4 {[%emt 0:09:03]} hxg4 {[%emt 0:05:58]} 27. hxg4 {[%emt 0:00:23]} Qg6 {[%emt 0:00:16]} 28. f5 {[%emt 0:03:43]} Qg7 {[%emt 1:08:08]} 29. Re6 {[%emt 0:08:02]} Qh6 {[%emt 0:00:00]} 30. Rxf6 {[%emt 0:02:10]} Qxf6 {[%emt 0:00:00]} 31. Re1 {[%emt 0:03:15]} Be5 {[%emt 0:00:00]} 32. Qh3+ {[%emt 0:01:05]} Kg7 {[%emt 0:00:00]} 33. Qh5 {[%emt 0:00:28]} Rh8 {[%emt 0:00:00]} 34. Qxg5+ {[%emt 0:02:01]} Kf7 {[%emt 0:00:00]} 35. Qxf6+ {[%emt 0:13:33]} Kxf6 {[%emt 0:00:00]} 36. Rf1 {[%emt 0:00:30]} Rg8 {[%emt 0:00:00]} 37. g5+ {[%emt 0:00:17]} Rxg5+ {[%emt 0:00:00]} 38. Bxg5+ {[%emt 0:00:19]} Kxg5 {[%emt 0:00:00]} 39. Kg2 {[%emt 0:00:20]} c5 {[%emt 0:00:00]} 40. Rh1 {[%emt 0:01:22]} Kxf5 {[%emt 0:00:00]} 41. Rh7 {[%emt 0:00:59]} Bf4 {[%emt 0:00:00]} 42. Rh1 {[%emt 0:06:28]} Ke6 {[%emt 0:00:00]} 43. Kf3 {[%emt 0:00:21]} Be3 {[%emt 0:00:00]} 44. Kg4 {[%emt 0:00:55]} a5 {[%emt 0:00:00]} 45. Kf3 {[%emt 0:01:09]} Kd6 {[%emt 0:00:00]} 46. Kg4 {[%emt 0:00:19]} Kc6 {[%emt 0:00:00]} 47. Kf5 {[%emt 0:00:11]} b4 {[%emt 0:00:00]} 48. a4 {[%emt 0:01:38]} c4 {[%emt 0:00:00]} 49. b3 {[%emt 0:00:13]} Kd6 {[%emt 0:00:00]} 50. Rh8 {[%emt 0:00:22]} cxb3 {[%emt 0:00:00]} 51. cxb3 {[%emt 0:03:14]} Kc7 {[%emt 0:00:00]} 52. Ra8 {[%emt 0:00:00]} Kb6 {[%emt 0:00:00]} 53. Ke6 {[%emt 0:00:00]} Bg1 {[%emt 0:00:00]} 54. Kxd5 {[%emt 0:00:00]} Be3 {[%emt 0:00:00]} 55. Rb8+ {[%emt 0:00:00]} Ka6 {[%emt 0:00:00]} 56. Kc6 {[%emt 0:00:00]} Ka7 {[%emt 0:00:00]} 57. Rb5 {[%emt 0:00:00]} Ka6 {[%emt 0:00:00]} 58. Rb6+ {[%emt 0:00:00]} Ka7 {[%emt 0:00:00]} 59. Kb5 {[%emt 0:00:00]} Bf4 {[%emt 0:00:00]} 60. Ra6+ {[%emt 0:00:00]} Kb7 {[%emt 0:00:00]} 61. Rxa5 {[%emt 0:00:20]} Bd2 {[%emt 0:00:00]} 62. Ra6 {[%emt 0:00:18]} Bc3 {[%emt 0:00:00]} 63. Rd6 {[%emt 0:00:26]} Kc7 {[%emt 0:00:00]} 64. Rd5 {[%emt 0:00:15]} Kb7 {[%emt 0:00:00]} 65. a5 {[%emt 0:00:15]} Ka7 {[%emt 0:00:00]} 66. a6 {[%emt 0:00:09]} 1-0

[Event "FIDE WCCC Open-08 2024"]
[Site "Montesilvano"]
[Date "2024.11.20"]
[Round "6.21"]
[White "Mudriievskyi, Jan"]
[Black "Lau, Great Boyou"]
[Result "0-1"]
[ECO "B23"]
[WhiteElo "1682"]
[BlackElo "1514"]
[Annotator "NA RC"]
[PlyCount "150"]
[EventDate "2024.11.18"]
[EventType "swiss"]
[EventCountry "ITA"]
[SourceTitle "playchess.com"]
[Source "ChessBase"]
[SourceQuality "1"]
[TimeControl "5400+30"]

1. e4 {[%emt 0:00:02]} c5 {[%emt 0:00:07]} 2. Nc3 {[%emt 0:00:05]} e6 {[%emt 0:00:12]} 3. f4 {[%emt 0:00:15]} Ne7 {[%emt 0:00:44]} 4. d3 {[%emt 0:03:16]} d5 {[%emt 0:02:02]} 5. Nf3 {[%emt 0:00:57]} d4 {[%emt 0:03:36]} 6. Ne2 {[%emt 0:00:51]} b6 {[%emt 0:05:55]} 7. g3 {[%emt 0:00:32]} Bb7 {[%emt 0:00:55]} 8. Bg2 {[%emt 0:02:51]} Nd7 {[%emt 0:01:13]} 9. c3 {[%emt 0:02:36]} dxc3 {[%emt 0:01:40]} 10. Nxc3 {[%emt 0:00:54]} Nf6 {[%emt 0:01:20]} 11. O-O {[%emt 0:02:42]} g6 {[%emt 0:03:16]} 12. h3 {[%emt 0:05:36]} Bg7 {[%emt 0:02:38]} 13. Be3 {[%emt 0:00:43]} Nd7 {[%emt 0:02:52]} 14. d4 {[%emt 0:03:02]} Rc8 {[%emt 0:09:25]} 15. Nb5 {[%emt 0:07:49]} O-O {[%emt 0:05:59]} 16. Nd6 {[%emt 0:07:04]} Rb8 {[%emt 0:00:55]} 17. Qb3 {[%emt 0:02:54]} Ba8 {[%emt 0:14:40]} 18. Ng5 {[%emt 0:13:42]} cxd4 {[%emt 0:07:48]} 19. Ndxf7 {[%emt 0:00:30]} Rxf7 {[%emt 0:01:33]} 20. Qxe6 {[%emt 0:00:25]} Qe8 {[%emt 0:05:52]} 21. Nxf7 {[%emt 0:01:10]} Qxf7 {[%emt 0:00:18]} 22. Qxd7 {[%emt 0:00:35]} dxe3 {[%emt 0:01:03]} 23. Qxa7 {[%emt 0:01:23]} Nc6 {[%emt 0:08:17]} 24. Qxf7+ {[%emt 0:01:31]} Kxf7 {[%emt 0:00:32]} 25. e5 {[%emt 0:02:16]} Nd4 {[%emt 0:01:45]} 26. Bxa8 {[%emt 0:04:27]} Rxa8 {[%emt 0:01:04]} 27. Rfd1 {[%emt 0:02:10]} Rd8 {[%emt 0:01:53]} 28. Kg2 {[%emt 0:03:13]} e2 {[%emt 0:04:19]} 29. Rd3 {[%emt 0:01:40]} Bf8 {[%emt 0:01:35]} 30. a3 {[%emt 0:01:18]} Be7 {[%emt 0:03:41]} 31. Re1 {[%emt 0:12:12]} Nc2 {[%emt 0:02:05]} 32. Rxe2 {[%emt 0:01:52]} Rxd3 {[%emt 0:00:08]} 33. Rxc2 {[%emt 0:00:05]} Rb3 {[%emt 0:00:08]} 34. Kh2 {[%emt 0:01:54]} Bc5 {[%emt 0:00:35]} 35. Kg2 {[%emt 0:00:43]} Bd4 {[%emt 0:03:05]} 36. Rc7+ {[%emt 0:00:08]} Kg8 {[%emt 0:00:10]} 37. Rc8+ {[%emt 0:01:38]} Kf7 {[%emt 0:00:49]} 38. Rc7+ {[%emt 0:00:08]} Ke6 {[%emt 0:00:21]} 39. Rxh7 {[%emt 0:02:56]} Rxb2+ {[%emt 0:05:30]} 40. Kh1 {[%emt 0:02:46]} Kf5 {[%emt 0:00:00]} 41. Rd7 {[%emt 0:01:03]} Bc5 {[%emt 0:00:00]} 42. Rd1 {[%emt 0:00:37]} Ke4 {[%emt 0:00:26]} 43. Rf1 {[%emt 0:00:48]} Bxa3 {[%emt 0:00:16]} 44. g4 {[%emt 0:00:10]} Bc5 {[%emt 0:00:25]} 45. e6 {[%emt 0:09:31]} Re2 {[%emt 0:00:10]} 46. f5 {[%emt 0:00:00]} gxf5 {[%emt 0:00:12]} 47. gxf5 {[%emt 0:00:00]} Kd5 {[%emt 0:00:09]} 48. h4 {[%emt 0:00:00]} Kd6 {[%emt 0:00:26]} 49. Rf3 {[%emt 0:00:00]} Ke7 {[%emt 0:00:20]} 50. h5 {[%emt 0:00:00]} Re1+ {[%emt 0:00:24]} 51. Kg2 {[%emt 0:00:00]} Rg1+ {[%emt 0:00:11]} 52. Kh3 {[%emt 0:00:00]} Kf6 {[%emt 0:00:26]} 53. Kh2 {[%emt 0:00:00]} Rg5 {[%emt 0:00:34]} 54. Rh3 {[%emt 0:00:00]} Kxf5 {[%emt 0:01:25]} 55. h6 {[%emt 0:00:00]} Rg8 {[%emt 0:00:11]} 56. h7 {[%emt 0:00:00]} Rh8 {[%emt 0:00:08]} 57. Kg3 {[%emt 0:00:00]} Kg6 {[%emt 0:01:36]} 58. Kg2 {[%emt 0:00:00]} Rxh7 {[%emt 0:00:19]} 59. Rg3+ {[%emt 0:00:00]} Kf6 {[%emt 0:02:22]} 60. Rg8 {[%emt 0:00:00]} Rg7+ {[%emt 0:00:00]} 61. Rxg7 {[%emt 0:00:00]} Kxg7 {[%emt 0:00:00]} 62. Kf3 {[%emt 0:00:35]} Kf6 {[%emt 0:00:00]} 63. e7 {[%emt 0:00:14]} Bxe7 {[%emt 0:00:00]} 64. Ke4 {[%emt 0:00:06]} b5 {[%emt 0:00:00]} 65. Kd4 {[%emt 0:00:04]} b4 {[%emt 0:00:00]} 66. Kc4 {[%emt 0:00:08]} Ke5 {[%emt 0:00:00]} 67. Kd3 {[%emt 0:00:11]} Kd5 {[%emt 0:00:00]} 68. Kc2 {[%emt 0:00:10]} Kc4 {[%emt 0:00:00]} 69. Kb2 {[%emt 0:00:10]} b3 {[%emt 0:00:00]} 70. Kb1 {[%emt 0:00:05]} Kc3 {[%emt 0:00:00]} 71. Ka1 {[%emt 0:00:10]} Bd8 {[%emt 0:00:00]} 72. Kb1 {[%emt 0:00:08]} b2 {[%emt 0:00:00]} 73. Ka2 {[%emt 0:00:08]} Kc2 {[%emt 0:00:00]} 74. Ka3 {[%emt 0:00:02]} b1=Q {[%emt 0:00:04]} 75. Ka4 {[%emt 0:00:05]} Qb3# {[%emt 0:00:50]} 0-1

[Event "FIDE WCCC Open-08 2024"]
[Site "Montesilvano"]
[Date "2024.11.20"]
[Round "6.22"]
[White "Nguyen Thanh San"]
[Black "Petrenko, Tymofii"]
[Result "1-0"]
[ECO "D02"]
[WhiteElo "1493"]
[BlackElo "1678"]
[Annotator "NA RC"]
[PlyCount "139"]
[EventDate "2024.11.18"]
[EventType "swiss"]
[EventCountry "ITA"]
[SourceTitle "playchess.com"]
[Source "ChessBase"]
[SourceQuality "1"]
[TimeControl "5400+30"]

1. d4 {[%emt 0:00:48]} d5 {[%emt 0:00:08]} 2. Bf4 {[%emt 0:00:15]} Nf6 {[%emt 0:00:08]} 3. e3 {[%emt 0:00:10]} c5 {[%emt 0:00:10]} 4. Nf3 {[%emt 0:00:07]} Nc6 {[%emt 0:00:12]} 5. c3 {[%emt 0:00:14]} Bg4 {[%emt 0:00:12]} 6. Be2 {[%emt 0:00:48]} e6 {[%emt 0:01:50]} 7. Nbd2 {[%emt 0:02:46]} Bd6 {[%emt 0:00:37]} 8. Bg3 {[%emt 0:07:54]} O-O {[%emt 0:04:24]} 9. O-O {[%emt 0:01:16]} a6 {[%emt 0:02:47]} 10. dxc5 {[%emt 0:19:08]} Bxc5 {[%emt 0:00:18]} 11. Nb3 {[%emt 0:00:27]} Be7 {[%emt 0:02:31]} 12. Nbd4 {[%emt 0:00:36]} Nxd4 {[%emt 0:02:20]} 13. Nxd4 {[%emt 0:00:06]} Bxe2 {[%emt 0:00:21]} 14. Qxe2 {[%emt 0:00:05]} Rc8 {[%emt 0:00:43]} 15. Rad1 {[%emt 0:03:45]} b5 {[%emt 0:00:17]} 16. f3 {[%emt 0:00:03]} Qb6 {[%emt 0:00:32]} 17. Nc2 {[%emt 0:00:25]} a5 {[%emt 0:01:34]} 18. Bf2 {[%emt 0:08:27]} Qb7 {[%emt 0:00:11]} 19. Nd4 {[%emt 0:00:37]} b4 {[%emt 0:02:17]} 20. Be1 {[%emt 0:00:54]} Ne8 {[%emt 0:02:03]} 21. Qb5 {[%emt 0:17:17]} Qc7 {[%emt 0:01:58]} 22. cxb4 {[%emt 0:04:29]} axb4 {[%emt 0:00:07]} 23. Bd2 {[%emt 0:03:56]} Rb8 {[%emt 0:00:27]} 24. Qd3 {[%emt 0:01:49]} Rb6 {[%emt 0:01:07]} 25. Rc1 {[%emt 0:01:09]} Qd7 {[%emt 0:00:13]} 26. Rc2 {[%emt 0:00:50]} Nf6 {[%emt 0:00:29]} 27. Rfc1 {[%emt 0:01:40]} Rb7 {[%emt 0:00:36]} 28. Nc6 {[%emt 0:06:01]} Bd6 {[%emt 0:00:31]} 29. Kh1 {[%emt 0:01:19]} Ra8 {[%emt 0:00:32]} 30. e4 {[%emt 0:00:19]} Bf8 {[%emt 0:00:56]} 31. e5 {[%emt 0:02:33]} Ne8 {[%emt 0:00:22]} 32. b3 {[%emt 0:00:03]} g6 {[%emt 0:02:11]} 33. Qd4 {[%emt 0:02:26]} Ng7 {[%emt 0:00:23]} 34. g4 {[%emt 0:00:22]} h5 {[%emt 0:01:42]} 35. Bxb4 {[%emt 0:00:54]} Bxb4 {[%emt 0:00:18]} 36. Nxb4 {[%emt 0:00:01]} Qe7 {[%emt 0:00:40]} 37. Nc6 {[%emt 0:00:22]} Qg5 {[%emt 0:00:32]} 38. Rg1 {[%emt 0:01:15]} hxg4 {[%emt 0:00:59]} 39. fxg4 {[%emt 0:00:08]} Qh4 {[%emt 0:00:33]} 40. Qf2 {[%emt 0:01:24]} Qg5 {[%emt 0:02:12]} 41. h4 {[%emt 0:00:42]} Qh6 {[%emt 1:10:37]} 42. Qf6 {[%emt 0:00:32]} Qe3 {[%emt 0:00:00]} 43. Rf1 {[%emt 0:02:10]} Rf8 {[%emt 0:00:00]} 44. Qf3 {[%emt 0:00:35]} Qb6 {[%emt 0:00:00]} 45. h5 {[%emt 0:01:09]} g5 {[%emt 0:00:00]} 46. h6 {[%emt 0:00:41]} Ne8 {[%emt 0:00:00]} 47. Qd3 {[%emt 0:01:14]} Rc7 {[%emt 0:00:00]} 48. Rfc1 {[%emt 0:00:25]} Qb7 {[%emt 0:00:00]} 49. Qe3 {[%emt 0:01:17]} Kh7 {[%emt 0:00:00]} 50. Qxg5 {[%emt 0:00:46]} Rg8 {[%emt 0:00:00]} 51. Qf4 {[%emt 0:00:01]} Rg6 {[%emt 0:00:00]} 52. Nd8 {[%emt 0:00:28]} Rxh6+ {[%emt 0:00:00]} 53. Qxh6+ {[%emt 0:00:11]} Kxh6 {[%emt 0:00:00]} 54. Nxb7 {[%emt 0:00:01]} Rxb7 {[%emt 0:00:00]} 55. Kg2 {[%emt 0:00:11]} Kg5 {[%emt 0:00:00]} 56. Kh3 {[%emt 0:00:20]} f6 {[%emt 0:00:00]} 57. Rc8 {[%emt 0:00:22]} Re7 {[%emt 0:00:00]} 58. Re1 {[%emt 0:00:48]} fxe5 {[%emt 0:00:00]} 59. Rxe5+ {[%emt 0:00:05]} Kf4 {[%emt 0:00:00]} 60. Re1 {[%emt 0:00:13]} e5 {[%emt 0:00:00]} 61. Rd8 {[%emt 0:01:13]} d4 {[%emt 0:00:00]} 62. Kg2 {[%emt 0:00:24]} Kxg4 {[%emt 0:00:00]} 63. Rxd4+ {[%emt 0:00:12]} Kf5 {[%emt 0:00:00]} 64. Rd2 {[%emt 0:00:32]} Ke6 {[%emt 0:00:00]} 65. a4 {[%emt 0:00:32]} Rb7 {[%emt 0:00:00]} 66. Rde2 {[%emt 0:00:13]} Nc7 {[%emt 0:00:00]} 67. Rxe5+ {[%emt 0:00:03]} Kd6 {[%emt 0:00:00]} 68. R5e3 {[%emt 0:00:45]} Kc5 {[%emt 0:00:00]} 69. Rc1+ {[%emt 0:00:41]} Kb4 {[%emt 0:00:00]} 70. Re7 {[%emt 0:00:21]} 1-0

[Event "FIDE WCCC Open-08 2024"]
[Site "Montesilvano"]
[Date "2024.11.20"]
[Round "6.23"]
[White "Pera, Mikolaj"]
[Black "Szumiec, Jan"]
[Result "1/2-1/2"]
[ECO "B56"]
[WhiteElo "1446"]
[BlackElo "1678"]
[Annotator "NA RC"]
[PlyCount "88"]
[EventDate "2024.11.18"]
[EventType "swiss"]
[EventCountry "ITA"]
[SourceTitle "playchess.com"]
[Source "ChessBase"]
[SourceQuality "1"]
[TimeControl "5400+30"]

1. e4 {[%emt 0:00:03]} c5 {[%emt 0:00:07]} 2. Nf3 {[%emt 0:00:11]} d6 {[%emt 0:00:06]} 3. d4 {[%emt 0:00:13]} cxd4 {[%emt 0:00:09]} 4. Nxd4 {[%emt 0:00:05]} Nf6 {[%emt 0:00:16]} 5. Nc3 {[%emt 0:00:36]} Nc6 {[%emt 0:00:08]} 6. f3 {[%emt 0:00:46]} e5 {[%emt 0:02:52]} 7. Nb3 {[%emt 0:00:08]} Be7 {[%emt 0:00:06]} 8. Be3 {[%emt 0:00:11]} O-O {[%emt 1:30:46]} 9. Qd2 {[%emt 0:00:07]} a5 {[%emt 0:00:00]} 10. Bb5 {[%emt 0:00:06]} Be6 {[%emt 0:00:00]} 11. O-O-O {[%emt 0:02:37]} Na7 {[%emt 0:00:00]} 12. Bxa7 {[%emt 0:00:44]} Rxa7 {[%emt 0:00:00]} 13. Kb1 {[%emt 0:01:26]} Qb6 {[%emt 0:00:00]} 14. a4 {[%emt 0:01:36]} Rd8 {[%emt 0:00:00]} 15. Qe2 {[%emt 0:05:52]} Qc7 {[%emt 0:00:00]} 16. Rhe1 {[%emt 0:04:48]} Nh5 {[%emt 0:00:00]} 17. g3 {[%emt 0:02:19]} Nf6 {[%emt 0:00:00]} 18. Nd5 {[%emt 0:27:21]} Nxd5 {[%emt 0:00:00]} 19. exd5 {[%emt 0:00:08]} Bf5 {[%emt 0:00:00]} 20. Rd2 {[%emt 0:02:30]} Raa8 {[%emt 0:00:00]} 21. f4 {[%emt 0:00:45]} f6 {[%emt 0:00:00]} 22. Nd4 {[%emt 0:03:05]} Bd7 {[%emt 0:00:00]} 23. Bxd7 {[%emt 0:00:24]} Qxd7 {[%emt 0:00:00]} 24. Ne6 {[%emt 0:01:38]} Qxa4 {[%emt 0:00:00]} 25. Nxd8 {[%emt 0:01:55]} Rxd8 {[%emt 0:00:00]} 26. Qe4 {[%emt 0:00:45]} Qd7 {[%emt 0:00:00]} 27. f5 {[%emt 0:10:50]} a4 {[%emt 0:00:00]} 28. Rd3 {[%emt 0:00:32]} Ra8 {[%emt 0:00:00]} 29. Ra3 {[%emt 0:00:20]} b5 {[%emt 0:00:54]} 30. Rd3 {[%emt 0:02:58]} Qb7 {[%emt 0:01:40]} 31. Qf3 {[%emt 0:02:52]} b4 {[%emt 0:03:34]} 32. Kc1 {[%emt 0:02:10]} Rc8 {[%emt 0:01:08]} 33. Re2 {[%emt 0:02:19]} Qa6 {[%emt 0:00:56]} 34. Re4 {[%emt 0:01:55]} b3 {[%emt 0:00:16]} 35. Rc3 {[%emt 0:01:12]} Ra8 {[%emt 0:01:27]} 36. cxb3 {[%emt 0:01:29]} axb3 {[%emt 0:04:05]} 37. Rxb3 {[%emt 0:00:19]} Qa1+ {[%emt 0:00:00]} 38. Kc2 {[%emt 0:02:09]} Rc8+ {[%emt 0:00:00]} 39. Rc3 {[%emt 0:00:11]} Rb8 {[%emt 0:00:00]} 40. Rb3 {[%emt 0:02:09]} Rc8+ {[%emt 0:00:00]} 41. Rc3 {[%emt 0:00:31]} Rb8 {[%emt 0:00:00]} 42. Rb3 {[%emt 0:01:58]} Rc8+ {[%emt 0:00:00]} 43. Rc3 {[%emt 0:00:08]} Rb8 {[%emt 0:00:00]} 44. Rb3 {[%emt 0:00:26]} Rc8+ {[%emt 0:00:00]} 1/2-1/2